[Event "FIDE WY-U16 Olympiad 2022"]
[Site "Nakhchivan"]
[Date "2022.10.03"]
[Round "2.16"]
[White "Gamage, Desandhi Dhihansa"]
[Black "Fawaz, Nadia"]
[Result "1-0"]
[ECO "B40"]
[WhiteElo "1624"]
[BlackElo "1500"]
[Annotator "NA RC COMBH"]
[PlyCount "75"]
[EventDate "2022.10.02"]
[EventType "team-tourn"]
[EventCountry "AZE"]
[SourceTitle "playchess.com"]
[Source "ChessBase"]
[SourceQuality "1"]
[WhiteTeam "Sri Lanka"]
[BlackTeam "Lebanon"]
[WhiteTeamCountry "SRI"]
[BlackTeamCountry "LBN"]
[TimeControl "40/5400+30:1800+30"]

1. e4 {[%emt 0:00:02]} c5 {[%emt 0:00:23]} 2. Nf3 {[%emt 0:00:10]} e6 {[%emt 0:01:01]} 3. d4 {[%emt 0:00:06]} cxd4 {[%emt 0:00:28]} 4. Nxd4 {[%emt 0:00:06]} Nf6 {[%emt 0:00:50]} 5. Bd3 {[%emt 0:03:49]} Nc6 {[%emt 0:02:15]} 6. Be3 {[%emt 0:00:50]} d5 {[%emt 0:05:32]} 7. Nd2 {[%emt 0:04:06]} e5 {[%emt 0:06:55]} 8. N4f3 {[%emt 0:04:55]} h6 {[%emt 0:09:00]} 9. exd5 {[%emt 0:04:10]} Nxd5 {[%emt 0:01:27]} 10. Qe2 {[%emt 0:01:26]} Be7 {[%emt 0:03:33]} 11. Nc4 {[%emt 0:04:59]} Bg4 {[%emt 0:07:09]} 12. h3 {[%emt 0:01:36]} Bb4+ {[%emt 0:03:24]} 13. Ncd2 {[%emt 0:08:09]} Be6 {[%emt 0:02:49]} 14. Bb5 {[%emt 0:05:15]} Qc7 {[%emt 0:03:49]} 15. c3 {[%emt 0:06:29]} Ba5 {[%emt 0:03:10]} 16. O-O {[%emt 0:04:57]} O-O {[%emt 0:03:19]} 17. Bxc6 {[%emt 0:07:51]} bxc6 {[%emt 0:02:07]} 18. Bc5 {[%emt 0:00:08]} Rfd8 {[%emt 0:03:49]} 19. Nxe5 {[%emt 0:12:23]} Nf4 {[%emt 0:19:05]} 20. Qe3 {[%emt 0:08:58]} Nd5 {[%emt 0:02:01]} 21. Qg3 {[%emt 0:06:30]} Nxc3 {[%emt 0:02:50]} 22. bxc3 {[%emt 0:00:13]} Rxd2 {[%emt 0:00:10]} 23. Bd4 {[%emt 0:02:52]} c5 {[%emt 0:01:15]} 24. Be3 {[%emt 0:00:46]} Bxc3 {[%emt 0:03:57]} 25. Bxd2 {[%emt 0:00:16]} Bxe5 {[%emt 0:00:13]} 26. Qf3 {[%emt 0:00:07]} Rd8 {[%emt 0:00:41]} 27. Bc3 {[%emt 0:00:55]} Bf4 {[%emt 0:01:41]} 28. Rfd1 {[%emt 0:03:21]} Re8 {[%emt 0:01:17]} 29. a4 {[%emt 0:01:34]} Bc8 {[%emt 0:01:53]} 30. Re1 {[%emt 0:00:52]} Rf8 {[%emt 0:00:33]} 31. Rad1 {[%emt 0:00:49]} Bb7 {[%emt 0:00:29]} 32. Qg4 {[%emt 0:00:10]} g6 {[%emt 0:00:23]} 33. Rd7 {[%emt 0:00:30]} Qc6 {[%emt 0:02:45]} 34. Rxb7 {[%emt 0:01:42]} Bh2+ {[%emt 0:00:43]} 35. Kxh2 {[%emt 0:00:13]} Qxb7 {[%emt 0:00:14]} 36. Qf4 {[%emt 0:00:18]} Qb8 {[%emt 0:00:31]} 37. Be5 {[%emt 0:00:10]} Qb7 {[%emt 0:00:51]} 38. Qf6 {[%emt 0:00:22]} 1-0

[Event "FIDE WY-U16 Olympiad 2022"]
[Site "Nakhchivan"]
[Date "2022.10.03"]
[Round "2.16"]
[White "Berdibaeva, Edisa"]
[Black "Abdinova, Narmin"]
[Result "0-1"]
[ECO "C68"]
[WhiteElo "1563"]
[BlackElo "1810"]
[Annotator "COMBH"]
[PlyCount "89"]
[EventDate "2022.10.02"]
[EventType "team-tourn"]
[EventCountry "AZE"]
[TimeControl "40/5400+30:1800+30"]

1. e4 {[%emt 0:00:03]} e5 {[%emt 0:00:07]} 2. Nf3 {[%emt 0:00:06]} Nc6 {[%emt 0:00:04]} 3. Bb5 {[%emt 0:00:07]} a6 {[%emt 0:00:04]} 4. Bxc6 {[%emt 0:00:06]} dxc6 {[%emt 0:00:04]} 5. d4 {[%emt 0:00:06]} exd4 {[%emt 0:00:04]} 6. Qxd4 {[%emt 0:00:05]} Qxd4 {[%emt 0:00:02]} 7. Nxd4 Bd7 8. Nc3 {[%emt 0:00:25]} O-O-O {[%emt 0:00:14]} 9. Be3 {[%emt 0:00:23]} Re8 {[%emt 0:00:35]} 10. O-O-O {[%emt 0:01:03]} Bb4 {[%emt 0:00:17]} 11. Nde2 {[%emt 0:00:25]} f5 {[%emt 0:04:19]} 12. exf5 {[%emt 0:15:54]} Bxf5 {[%emt 0:00:50]} 13. a3 {[%emt 0:00:18]} Bd6 {[%emt 0:03:13]} 14. Bf4 {[%emt 0:05:09]} Bxf4+ {[%emt 0:10:27]} 15. Nxf4 {[%emt 0:00:08]} Nf6 {[%emt 0:00:05]} 16. f3 {[%emt 0:02:20]} g5 {[%emt 0:04:21]} 17. Nd3 {[%emt 0:14:18]} Nd5 {[%emt 0:08:06]} 18. Nxd5 {[%emt 0:11:56]} cxd5 {[%emt 0:00:01]} 19. Nb4 {[%emt 0:02:37]} c6 {[%emt 0:04:10]} 20. Rhe1 {[%emt 0:04:35]} g4 {[%emt 0:14:53]} 21. c3 {[%emt 0:08:53]} gxf3 {[%emt 0:07:33]} 22. gxf3 {[%emt 0:00:06]} Rhg8 {[%emt 0:03:58]} 23. Rxe8+ Rxe8 {[%emt 0:00:01]} 24. Nc2 {[%emt 0:03:54]} Bxc2 {[%emt 0:03:40]} 25. Kxc2 {[%emt 0:00:06]} Re3 {[%emt 0:00:01]} 26. Rd3 {[%emt 0:03:30]} Re1 {[%emt 0:00:08]} 27. Kb3 {[%emt 0:11:45]} Rf1 {[%emt 0:05:51]} 28. h4 {[%emt 0:05:02]} Rf2 {[%emt 0:01:34]} 29. a4 {[%emt 0:02:09]} a5 {[%emt 0:01:44]} 30. Ka3 {[%emt 0:01:03]} b6 {[%emt 0:03:55]} 31. b3 {[%emt 0:02:35]} Kd7 {[%emt 0:05:57]} 32. c4 {[%emt 0:02:13]} Kd6 {[%emt 0:00:27]} 33. b4 {[%emt 0:03:10]} axb4+ {[%emt 0:00:11]} 34. Kxb4 {[%emt 0:00:10]} Rh2 {[%emt 0:00:01]} 35. cxd5 {[%emt 0:02:23]} Rxh4+ {[%emt 0:00:06]} 36. Kb3 {[%emt 0:00:13]} cxd5 {[%emt 0:00:46]} 37. Re3 {[%emt 0:00:48]} Rf4 {[%emt 0:00:10]} 38. Rd3 {[%emt 0:00:33]} h5 {[%emt 0:00:06]} 39. Rd1 {[%emt 0:00:46]} Rxf3+ {[%emt 0:00:43]} 40. Kb4 {[%emt 0:00:09]} h4 {[%emt 0:01:03]} 41. Rh1 {[%emt 0:30:35]} h3 {[%emt 0:30:01]} 42. Kb5 {[%emt 0:00:10]} Rb3+ {[%emt 0:00:15]} 43. Ka6 {[%emt 0:00:16]} Ke5 {[%emt 0:00:24]} 44. Rh2 {[%emt 0:01:02]} d4 {[%emt 0:00:24]} 45. Rh1 {[%emt 0:00:00]} 0-1

[Event "FIDE WY-U16 Olympiad 2022"]
[Site "Nakhchivan"]
[Date "2022.10.03"]
[Round "2.17"]
[White "Anand, Batsukh"]
[Black "Kilic, Eray"]
[Result "0-1"]
[ECO "D94"]
[WhiteElo "2201"]
[BlackElo "2428"]
[PlyCount "110"]
[EventDate "2022.10.02"]
[EventType "team-tourn"]
[EventCountry "AZE"]
[TimeControl "40/5400+30:1800+30"]

1. d4 {[%emt 0:00:01]} Nf6 {[%emt 0:00:06]} 2. c4 {[%emt 0:00:06]} g6 {[%emt 0:00:03]} 3. Nc3 {[%emt 0:00:06]} d5 {[%emt 0:00:04]} 4. Nf3 {[%emt 0:00:05]} Bg7 {[%emt 0:00:08]} 5. e3 {[%emt 0:00:07]} c6 {[%emt 0:00:35]} 6. Bd3 {[%emt 0:02:09]} O-O {[%emt 0:00:16]} 7. O-O {[%emt 0:00:14]} dxc4 {[%emt 0:01:14]} 8. Bxc4 {[%emt 0:00:11]} Nbd7 {[%emt 0:00:10]} 9. e4 {[%emt 0:02:27]} Nb6 {[%emt 0:02:30]} 10. Bb3 {[%emt 0:00:16]} Bg4 {[%emt 0:01:59]} 11. Be3 {[%emt 0:00:27]} Ne8 {[%emt 0:02:22]} 12. a4 {[%emt 0:16:40]} a5 {[%emt 0:14:05]} 13. Rc1 {[%emt 0:08:09]} Nd6 {[%emt 0:05:20]} 14. h3 {[%emt 0:05:34]} Bxf3 {[%emt 0:00:15]} 15. Qxf3 {[%emt 0:00:15]} Nd7 {[%emt 0:11:45]} 16. e5 {[%emt 0:00:39]} Nf5 {[%emt 0:00:42]} 17. g4 {[%emt 0:07:45]} Qb6 {[%emt 0:00:37]} 18. gxf5 {[%emt 0:13:25]} Qxb3 {[%emt 0:00:10]} 19. Qg4 {[%emt 0:00:38]} Rad8 {[%emt 0:11:09]} 20. Ne4 {[%emt 0:04:25]} gxf5 {[%emt 0:01:22]} 21. Qxf5 {[%emt 0:00:47]} e6 {[%emt 0:00:13]} 22. Qg4 {[%emt 0:05:54]} f5 {[%emt 0:01:09]} 23. exf6 {[%emt 0:01:05]} Nxf6 {[%emt 0:00:02]} 24. Nc5 {[%emt 0:00:49]} Qxb2 {[%emt 0:08:50]} 25. Qxe6+ {[%emt 0:00:21]} Kh8 {[%emt 0:00:05]} 26. Qc4 {[%emt 0:08:41]} Nd5 {[%emt 0:05:54]} 27. Rc2 {[%emt 0:10:52]} Nxe3 {[%emt 0:02:56]} 28. fxe3 {[%emt 0:00:06]} Rxf1+ {[%emt 0:00:03]} 29. Kxf1 {[%emt 0:00:06]} Qb1+ {[%emt 0:01:47]} 30. Ke2 {[%emt 0:01:04]} Rf8 {[%emt 0:03:21]} 31. Rc1 {[%emt 0:02:15]} Qf5 {[%emt 0:00:49]} 32. Qe6 {[%emt 0:00:23]} Qf3+ {[%emt 0:05:28]} 33. Kd3 {[%emt 0:00:24]} Rd8 {[%emt 0:01:48]} 34. Nd7 {[%emt 0:00:12]} Qh5 {[%emt 0:04:20]} 35. Rg1 {[%emt 0:02:30]} Re8 {[%emt 0:00:27]} 36. Qg4 {[%emt 0:01:08]} Qf7 {[%emt 0:00:15]} 37. Nc5 {[%emt 0:00:52]} b6 {[%emt 0:02:43]} 38. Qd7 {[%emt 0:00:30]} Re7 {[%emt 0:00:17]} 39. Qd8+ {[%emt 0:02:39]} Bf8 {[%emt 0:00:04]} 40. Ne4 {[%emt 0:02:50]} c5 {[%emt 0:04:29]} 41. d5 {[%emt 0:31:40]} c4+ {[%emt 0:33:07]} 42. Kd4 {[%emt 0:01:51]} Qf3 {[%emt 0:06:17]} 43. Rg4 {[%emt 0:00:00]} Qf1 {[%emt 0:00:00]} 44. Kc3 {[%emt 0:00:00]} Qd3+ {[%emt 0:00:00]} 45. Kb2 {[%emt 0:00:00]} Rf7 {[%emt 0:00:00]} 46. Qxb6 {[%emt 0:00:00]} h5 {[%emt 0:00:00]} 47. Rg5 {[%emt 0:00:00]} Qxe4 {[%emt 0:00:00]} 48. Rxh5+ {[%emt 0:00:00]} Kg8 {[%emt 0:00:00]} 49. Qe6 {[%emt 0:00:00]} Bg7+ {[%emt 0:00:00]} 50. Kc1 {[%emt 0:00:00]} Qh1+ {[%emt 0:00:00]} 51. Kd2 {[%emt 0:00:00]} Qg2+ {[%emt 0:00:00]} 52. Kd1 {[%emt 0:00:00]} Qf3+ {[%emt 0:00:00]} 53. Kc2 {[%emt 0:00:00]} Qe2+ {[%emt 0:00:00]} 54. Kc1 {[%emt 0:00:00]} Qxh5 {[%emt 0:00:00]} 55. Qe8+ {[%emt 0:00:00]} Bf8 {[%emt 0:00:00]} 0-1

[Event "FIDE WY-U16 Olympiad 2022"]
[Site "Nakhchivan"]
[Date "2022.10.03"]
[Round "2.17"]
[White "Mendez Machado, Andre"]
[Black "Cheng, Justin Hong-Chen"]
[Result "1-0"]
[ECO "B24"]
[WhiteElo "2003"]
[BlackElo "1843"]
[Annotator "TA"]
[PlyCount "89"]
[EventDate "2022.10.02"]
[EventType "team-tourn"]
[EventCountry "AZE"]
[TimeControl "40/5400+30:1800+30"]

{[%evp 18,88,0,5,21,25,15,-52,-47,-53,-49,-50,-50,-69,-41,-56,-55,-99,-49,-58,-58,-81,-73,-73,-83,-66,-71,-113,-110,-184,-199,-206,-191,-200,-159,-165,-66,-66,-68,-53,-61,-143,-144,-161,-148,-1012,-838,-1368,-369,-1353,-1325,-29989,0,0,575,563,870,818,870,865,872,879,858,836,1222,1209,1702,1172,5152,5038,2701,1559,29999]} 1. e4 {[%emt 0:00:01]} c5 {[%emt 0:00:24]} 2. Nc3 {[%emt 0:00:05]} Nc6 {[%emt 0:00:23]} 3. Bb5 {[%emt 0:00:03]} Nd4 {[%emt 0:01:46]} 4. Nf3 {[%emt 0:00:02]} a6 {[%emt 0:00:32]} 5. Bd3 {[%emt 0:00:06]} Nc6 {[%emt 0:00:38]} 6. Bc4 {[%emt 0:10:21]} e6 {[%emt 0:15:06]} 7. O-O {[%emt 0:01:51]} d6 {[%emt 0:04:15][%cal Bd7d6,Bd6d5][%mdl 32]} 8. a4 {[%emt 0:07:47]} Nf6 {[%emt 0:04:21]} 9. d4 {[%emt 0:01:48]} cxd4 {[%emt 0:02:53]} 10. Nxd4 {[%emt 0:00:22]} Qc7 {[%emt 0:06:24] B88: Sicilian: Sozin Attack.} 11. Nxc6 {[%emt 0:10:17]} bxc6 {[%emt 0:02:24]} 12. Qf3 {[%emt 0:08:42]} (12. Bf4 $11) 12... d5 $1 $15 {[%emt 0:19:59] Black is slightly better.} 13. Bd3 {[%emt 0:01:55]} Bd6 {[%emt 0:01:28]} 14. h3 {[%emt 0:07:36] [#]} O-O $146 {[%emt 0:00:49]} ({Predecessor:} 14... Bb7 15. Re1 O-O 16. a5 d4 17. Na4 Qxa5 18. Qe2 Bb4 19. Rf1 e5 20. Bg5 Be7 21. b3 Qc7 22. Bxf6 Bxf6 {1-0 (42) Zielinski,M (2091)-Dzierzak,R (1912) Szczyrk 2013}) 15. Bg5 {[%emt 0:07:34]} Be5 {[%emt 0:03:18]} 16. Qe2 {[%emt 0:04:57]} h6 {[%emt 0:01:10]} 17. Bd2 {[%emt 0:05:25]} Bb7 {[%emt 0:07:53]} (17... c5 $17 {Hoping for ...c4.} 18. b3 Bb7) 18. f4 {[%emt 0:03:22]} Bd4+ {[%emt 0:00:26]} 19. Kh1 {[%emt 0:01:41]} c5 $1 {[%emt 0:01:56]} 20. e5 {[%emt 0:01:09]} c4 $36 {[%emt 0:05:39][%mdl 2048] And now ...Nd7 would win. Black is really pushing.} 21. exf6 {[%emt 0:00:48]} cxd3 {[%emt 0:00:25]} 22. Qxd3 {[%emt 0:00:46]} Bxf6 {[%emt 0:00:18]} 23. f5 {[%emt 0:00:38]} (23. Be3 $17) 23... Rac8 {[%emt 0:02:45]} 24. fxe6 {[%emt 0:04:28]} fxe6 {[%emt 0:00:14] Strongly threatening ...Qc6.} 25. Qg6 {[%emt 0:04:25]} d4 {[%emt 0:09:28]} 26. Ne4 {[%emt 0:01:33]} Bxe4 {[%emt 0:03:11]} ({Black should try} 26... Qxc2 $19 27. Nxf6+ Kh8 28. Qh7+ (28. Qxc2 $2 Rxc2 29. Nh5 Rxf1+ 30. Rxf1 Rxd2 $19) 28... Qxh7 29. Nxh7 Rxf1+ 30. Rxf1 Kxh7) 27. Qxe4 {[%emt 0:00:04]} Qxc2 {[%emt 0:00:19]} 28. Qxe6+ {[%emt 0:00:22]} Kh7 {[%emt 0:00:43]} 29. Bb4 {[%emt 0:10:36]} ({Better is} 29. Rac1 $15 Qd3 30. Bf4) 29... Rfe8 $17 {[%emt 0:01:10]} 30. Qf7 {[%emt 0:02:55]} Qg6 {[%emt 0:03:03]} 31. Qa7 {[%emt 0:01:42][%mdl 8192]} (31. Qxg6+ $17 Kxg6 32. Ra3) 31... Rc2 {[%emt 0:00:49][%csl Gc2][%cal Rg6g2]} 32. Rg1 {[%emt 0:01:42]} Qg3 $2 {[%emt 0:01:26]} (32... Ree2 {[%cal Re2g2]} 33. Qa8 Be5) 33. Be1 $2 {[%emt 0:00:52]} (33. Ra3 d3 34. Qd7) 33... Qf4 $19 {[%emt 0:00:33] ( -> ...Be5)} 34. Qxa6 {[%emt 0:00:42] [#]} Be5 $2 {[%emt 0:00:41]} (34... Re3 $1 {mates} 35. Qe6 Rxe6 36. Bd2 Qxd2 37. a5 Re3 38. Ra3 Be5 39. h4 {[#]} Qxg2+ $3 {[%mdl 512]} 40. Rxg2 Re1+ 41. Rg1 Rh2#) 35. Qd3+ $11 {[%emt 0:00:03]} Kh8 $2 {[%emt 0:00:11][%mdl 8192]} (35... g6 $11 {and Black is okay.} 36. g3 Qf5 37. Qxf5 gxf5) 36. g3 $18 {[%emt 0:00:22]} Qe3 {[%emt 0:00:55]} 37. Qxc2 {[%emt 0:00:12]} d3 {[%emt 0:00:34]} 38. Qf2 {[%emt 0:00:52]} Qe4+ {[%emt 0:00:19]} 39. Qg2 {[%emt 0:00:13]} Qc4 {[%emt 0:00:35]} 40. Bc3 {[%emt 0:01:09]} Bc7 {[%emt 0:00:34]} 41. Rge1 {[%emt 0:30:39]} Rd8 {[%emt 0:30:27]} 42. Qe4 {[%emt 0:00:42]} Qb3 {[%emt 0:00:32]} 43. Qg6 {[%emt 0:00:00][%csl Gc3,LRg7,LRh6][%cal Rg6g7]} Qd5+ {[%emt 0:00:00]} 44. Kh2 {[%emt 0:00:00][%csl Gc3][%cal Rg6g7]} Rg8 {[%emt 0:00:00]} 45. Qxh6# {White used his chance.  Weighted Error Value: White=0.96/Black=0.80} 1-0

[Event "FIDE WY-U16 Olympiad 2022"]
[Site "Nakhchivan"]
[Date "2022.10.03"]
[Round "2.18"]
[White "Li, Yiheng"]
[Black "Batista Rosas, Nicolas Arturo"]
[Result "1/2-1/2"]
[ECO "B15"]
[WhiteElo "1766"]
[BlackElo "1919"]
[Annotator "TA"]
[PlyCount "209"]
[EventDate "2022.10.02"]
[EventType "team-tourn"]
[EventCountry "AZE"]
[TimeControl "40/5400+30:1800+30"]

{[%evp 14,209,31,23,37,22,39,31,44,16,27,0,0,0,0,-23,37,-23,0,-83,-84,-109,-109,-105,-108,-116,-117,-113,-114,-114,-94,-112,-101,-106,-108,-109,-77,-113,-119,-114,-114,-116,-110,-141,-133,-184,-89,-100,-10,-93,-94,-89,-39,-40,0,0,0,0,0,0,0,-16,-18,-29,0,-21,0,0,0,-12,-10,-16,-14,-97,-89,-89,-89,-134,-137,-137,-126,-160,-155,-143,-133,-148,-146,-298,-302,-300,-296,-290,-290,-278,-280,-306,-294,-335,-334,-309,-359,-359,-359,-341,-293,-293,-293,-301,-293,-293,-293,-293,-235,-293,-294,-294,-294,-359,-300,-303,-303,-340,-357,-12832,-12834,-12834,-12835,-12835,-12834,-12834,-12835,-12837,-12837,-12837,-12838,-12839,-12839,-12840,-12838,-12839,-12838,-12838,-12836,-12837,-12837,-12837,-12838,-12838,-12839,-12837,-24,-24,0,0,0,-24,-24,-12849,-92,-92,-92,-92,-92,-92,0,-92,0,0,0,0,0,0,0,0,0,0,0,0,0,0,0,-27998,-27998,-27999,-27999,-27994,-27994,-27995,-27992,-27993,0,0,0,0,0,0,0,0]} 1. e4 {[%emt 0:00:06]} c6 {[%emt 0:00:13]} 2. d4 {[%emt 0:00:09]} d5 {[%emt 0:00:31]} 3. Nc3 {[%emt 0:00:08]} dxe4 {[%emt 0:00:40]} 4. Nxe4 {[%emt 0:00:09]} Nf6 {[%emt 0:00:17]} 5. Nxf6+ {[%emt 0:00:08]} exf6 {[%emt 0:00:07]} 6. c3 {[%emt 0:00:03]} Bd6 {[%emt 0:01:55]} 7. Bd3 {[%emt 0:00:05]} O-O {[%emt 0:02:04]} 8. Qc2 {[%emt 0:00:19] Active counter play!} Re8+ {[%emt 0:02:38] B15: Caro-Kann: 3 Nc3: 3...g6 and 3...dxe4 4 Nxe4 Nf6 5 Nxf6+ exf6.} 9. Ne2 {[%emt 0:00:14]} h5 {[%emt 0:02:38]} 10. O-O {[%emt 0:03:12]} h4 {[%emt 0:03:46] White is slightly better.} 11. Bd2 {[%emt 0:07:10]} Nd7 {[%emt 0:06:56]} 12. Bf4 {[%emt 0:02:00]} Nf8 {[%emt 0:01:33][%cal Oe8e2]} (12... Rxe2 $2 13. Qxe2 Bxf4 14. Qe4 $18) 13. Bxd6 {[%emt 0:01:15]} Qxd6 {[%emt 0:00:03] [#]} 14. Qd2 $146 {[%emt 0:04:44]} ({Predecessor:} 14. Rae1 Bd7 15. g3 Bh3 16. Nf4 Bxf1 17. Rxf1 Re7 18. Bc4 b5 19. Bb3 a5 20. a3 {0-1 (42) Rempe,J (1957)-Amburgy,R (1989) ICC INT 2020}) 14... Ne6 {[%emt 0:06:44]} (14... h3 $11) 15. Rae1 {[%emt 0:02:22]} ({White should play} 15. f4 $14) 15... Bd7 {[%emt 0:05:12][%cal Oh4h3]} (15... h3 $5) 16. Bc4 {[%emt 0:06:12]} (16. f4 $11 {remains equal.}) 16... h3 $17 {[%emt 0:09:34]} 17. g3 {[%emt 0:05:20]} Ng5 {[%emt 0:01:56]} 18. f3 {[%emt 0:00:56]} Be6 {[%emt 0:07:39]} 19. d5 {[%emt 0:14:57]} Bxd5 {[%emt 0:04:03]} 20. Bxd5 {[%emt 0:00:45]} cxd5 {[%emt 0:00:11]} ({Reject} 20... Qxd5 $6 21. Qxd5 cxd5 22. Kf2 $11 (22. Nd4 Ne6 $15)) 21. Nd4 {[%emt 0:02:19]} g6 {[%emt 0:06:04]} 22. Qf2 {[%emt 0:05:42]} a6 {[%emt 0:00:39]} 23. Re2 {[%emt 0:01:20]} Kg7 {[%emt 0:07:14]} 24. Rfe1 {[%emt 0:00:58]} Qd7 {[%emt 0:00:13]} 25. Kf1 {[%emt 0:02:48]} Ne6 {[%emt 0:04:57]} 26. Rd1 {[%emt 0:04:20]} Nxd4 {[%emt 0:01:06]} 27. Rxd4 {[%emt 0:00:45]} Qb5 {[%emt 0:04:55]} 28. Rb4 {[%emt 0:04:06]} Qd3 {[%emt 0:01:02]} 29. Rd4 {[%emt 0:02:45]} (29. a3 $17) 29... Qf5 {[%emt 0:03:44]} (29... Qb1+ $1 $19 {and Black stays clearly on top.} 30. Qe1 Qf5 31. Rxe8 Qxf3+ 32. Qf2 Qh1+ 33. Qg1 Qxg1+ 34. Kxg1 Rxe8) 30. g4 {[%emt 0:06:15]} Qg5 {[%emt 0:04:19]} (30... Qd7 $1 $17 31. c4 Rac8 32. Rxd5 Qc6) 31. Red2 {[%emt 0:03:25]} (31. Rxe8 $11 Rxe8 32. Qd2) 31... Rad8 {[%emt 0:02:35]} 32. Qg3 {[%emt 0:04:44]} f5 {[%emt 0:02:38]} ({Better is} 32... Qe3 $17 33. Qf2 Qe6) 33. Qxh3 $15 {[%emt 0:05:00]} fxg4 {[%emt 0:00:21]} (33... Re5 $5 {[%cal Rd8e8]}) 34. Qxg4 {[%emt 0:01:08]} Qe3 {[%emt 0:01:23] Strongly threatening ...Qe1+.} 35. Qg3 {[%emt 0:01:08] Prevents Qe1+.} b5 {[%emt 0:00:11]} 36. Qf2 {[%emt 0:01:17]} Qe5 {[%emt 0:00:18]} 37. Qg3 {[%emt 0:01:02]} Qf5 {[%emt 0:00:11]} 38. Kg2 {[%emt 0:01:36]} Re6 {[%emt 0:02:23]} 39. Qf2 {[%emt 0:02:07]} Rf6 {[%emt 0:01:57]} 40. Re2 {[%emt 0:02:32]} Rh8 {[%emt 0:00:52][%cal Bd8h8,Bh8h5,Bh5f5][%mdl 32] Threatens to win with ...Qh3+.} 41. Rg4 {[%emt 0:31:34]} Rh5 {[%emt 0:31:40][%cal Od5d4]} 42. Rd2 {[%emt 0:02:21]} Qb1 {[%emt 0:01:10]} 43. Qd4 {[%emt 0:01:17]} (43. a3 $11) 43... Rhf5 $1 $17 {[%emt 0:00:58]} 44. Rg3 {[%emt 0:00:44]} Qxa2 {[%emt 0:00:20]} 45. Rf2 {[%emt 0:00:53]} Qc4 {[%emt 0:01:08]} 46. Rg4 {[%emt 0:00:35]} Qc7 {[%emt 0:00:40]} 47. Kg1 {[%emt 0:00:17]} Qe7 {[%emt 0:01:30]} 48. Kg2 {[%emt 0:00:28]} Qd6 {[%emt 0:00:00]} 49. Kg1 {[%emt 0:00:00]} Kg8 {[%emt 0:00:00]} 50. Rh4 $2 {[%emt 0:00:00]} (50. Kg2 $17) 50... Rf4 $19 {[%emt 0:00:00]} 51. Rxf4 {[%emt 0:00:00]} Rxf4 {[%emt 0:00:00][%mdl 4096] Endgame KQR-KQR} 52. Qd3 {[%emt 0:00:00]} Qc5 {[%emt 0:00:00]} 53. Kg2 {[%emt 0:00:00]} d4 {[%emt 0:00:00]} 54. Rc2 {[%emt 0:00:00]} Qg5+ {[%emt 0:00:00]} 55. Kf1 {[%emt 0:00:00]} Qh5 {[%emt 0:00:00]} ({Don't blunder} 55... Qg4 $2 56. Rf2 Qh5 57. cxd4 $19) 56. Rf2 {[%emt 0:00:00]} dxc3 {[%emt 0:00:00]} 57. Qxc3 {[%emt 0:00:00]} Rc4 {[%emt 0:00:00]} 58. Qe3 {[%emt 0:00:00]} Qc5 {[%emt 0:00:00]} 59. Qxc5 {[%emt 0:00:00]} Rxc5 {[%emt 0:00:00] KR-KR} 60. Rd2 {[%emt 0:00:00]} Kf8 {[%emt 0:00:00]} 61. b4 {[%emt 0:00:00]} Rc3 {[%emt 0:00:00]} 62. Kg2 {[%emt 0:00:00]} Rb3 {[%emt 0:00:00] Prevents Rb2.} 63. Ra2 {[%emt 0:00:00]} Rxb4 {[%emt 0:00:00] ...Ra4 is the strong threat.} 64. Rxa6 {[%emt 0:00:00]} Rb1 {[%emt 0:00:00]} 65. Rb6 {[%emt 0:00:00]} b4 {[%emt 0:00:00]} 66. Rb7 {[%emt 0:00:00]} Rb2+ {[%emt 0:00:00]} 67. Kg3 {[%emt 0:00:00]} Kg7 {[%emt 0:00:00]} 68. Kf4 $2 {[%emt 0:00:00]} (68. Kg4 Kf6 69. Kg3) 68... Rxh2 {[%emt 0:00:00]} 69. Kg3 {[%emt 0:00:00]} Rb2 {[%emt 0:00:00]} 70. Kh3 {[%emt 0:00:00]} Kf6 {[%emt 0:00:00]} 71. Kg3 {[%emt 0:00:00]} Rb1 {[%emt 0:00:00]} 72. Kg2 {[%emt 0:00:00]} b3 {[%emt 0:00:00]} 73. Kh2 {[%emt 0:00:00]} Ke6 {[%emt 0:00:00]} 74. Kg2 {[%emt 0:00:00]} f5 {[%emt 0:00:00]} 75. Rb6+ {[%emt 0:00:00]} Kf7 {[%emt 0:00:00]} 76. Kh2 {[%emt 0:04:44]} Kg7 {[%emt 0:00:00]} 77. Kg2 {[%emt 0:00:35]} Kh6 {[%emt 0:00:00]} 78. Kg3 {[%emt 0:01:12]} Kg5 {[%emt 0:00:00]} 79. Rb8 {[%emt 0:01:33]} b2 {[%emt 0:00:00]} 80. Kg2 {[%emt 0:01:02]} Kf4 {[%emt 0:00:00]} 81. Rb6 {[%emt 0:00:53]} Rd1 $2 {[%emt 0:01:08]} (81... g5 $19 82. Rb4+ Ke3 83. Rb3+ Kd4) 82. Rxb2 $11 {[%emt 0:00:20]} Ke3 {[%emt 0:00:07]} 83. Rb6 {[%emt 0:04:00]} Rd2+ {[%emt 0:00:14]} 84. Kg1 {[%emt 0:00:57]} g5 {[%emt 0:00:27]} ({Don't play} 84... Kxf3 $6 85. Rxg6 f4 86. Rf6 $17) 85. Rg6 $2 {[%emt 0:01:39][%mdl 8192] [#]} (85. Rb5 $11) 85... Kf4 $2 {[%emt 0:00:13]} (85... g4 $1 $19 86. fxg4 f4) 86. Rg8 {[%emt 0:00:44]} Ra2 {[%emt 0:01:41]} 87. Rg7 {[%emt 0:01:09]} Ra3 {[%emt 0:01:40]} 88. Kg2 {[%emt 0:00:24]} Ra2+ {[%emt 0:00:28]} 89. Kg1 {[%emt 0:00:06]} Kxf3 {[%emt 0:00:11]} (89... Ra8 $17 90. Rg6 Ra1+ 91. Kg2 Ra2+ 92. Kg1 Rb2) 90. Rxg5 {[%emt 0:00:05]} f4 {[%emt 0:00:09][%cal Bf5f4,Bf4f3,Bf3f2][%mdl 32]} 91. Rb5 {[%emt 0:02:11]} Ra1+ {[%emt 0:00:11]} 92. Kh2 {[%emt 0:00:04]} Re1 {[%emt 0:00:28]} 93. Rb4 {[%emt 0:01:03]} Ke3 {[%emt 0:01:11]} 94. Rb3+ {[%emt 0:00:18]} Kf2 {[%emt 0:00:09]} 95. Rb4 {[%emt 0:00:36]} f3 {[%emt 0:00:16] Hoping for ...Kf1.} 96. Rb3 {[%emt 0:00:32]} Re3 {[%emt 0:00:21]} 97. Rb2+ {[%emt 0:00:25] [#]} Kf1 $1 {[%emt 0:00:25]} 98. Rb1+ {[%emt 0:00:39]} Re1 {[%emt 0:00:06]} 99. Rb3 {[%emt 0:00:35]} f2 {[%emt 0:00:25]} 100. Rb2 {[%emt 0:00:30]} Re3 $2 {[%emt 0:00:47]} (100... Rd1 101. Rb7 Ra1) 101. Ra2 {[%emt 0:00:32]} Ke1 $2 {[%emt 0:00:13]} (101... Re2 102. Ra8 Re5) 102. Ra1+ {[%emt 0:00:05] The position is equal.} Ke2 {[%emt 0:01:13]} 103. Kg2 {[%emt 0:00:15] Against f1Q+} Re8 {[%emt 0:00:33]} 104. Ra2+ {[%emt 0:00:12]} Ke3 {[%emt 0:00:14] And now ...Rg8+ would win.} 105. Rxf2 {[%emt 0:00:45] Weighted Error Value: White=0.21 (precise) /Black=0.12 (very precise)} 1/2-1/2